bitfinex/quotes_SOLUSD_20241113
["timestamp","ask_amount","ask_price","bid_price","bid_amount"]
[1731534485909,0.1,211.48,211.46,23.57028335]
[1731534486282,0.1,211.47,211.44,23.57028335]
[1731534486484,0.1,211.48,211.45,20.0]
[1731534486701,0.1,211.45,211.44,23.57028335]
[1731534486903,0.1,211.44,211.4,23.57028335]
[1731534487082,0.1,211.44,211.41,20.0]
[1731534487284,0.2,211.45,211.4,23.57028335]
[1731534487693,0.1,211.45,211.4,23.57028335]
[1731534488000,0.1,211.44,211.42,23.57028335]
[1731534488402,0.1,211.44,211.4,23.57028335]
[1731534488784,0.1,211.43,211.4,23.57028335]
[1731534489706,23.57028335,211.49,211.4,23.57028335]
[1731534489707,0.1,211.41,211.4,23.57028335]
[1731534489885,0.2,211.39,211.36,23.57028335]
[1731534490084,0.1,211.39,211.38,23.57028335]
[1731534490698,0.1,211.41,211.38,23.57028335]
[1731534491217,0.1,211.42,211.4,23.57028335]
[1731534491515,0.1,211.4,211.38,23.57028335]
[1731534492601,0.1,211.42,211.38,23.57028335]
[1731534492808,0.1,211.4,211.38,23.57028335]
[1731534494290,0.1,211.42,211.38,23.57028335]
[1731534494492,0.1,211.42,211.41,23.57028335]
[1731534497021,0.1,211.45,211.41,23.57028335]
[1731534497318,0.2,211.47,211.44,23.57028335]
[1731534497794,0.1,211.47,211.44,23.57028335]
[1731534497997,0.1,211.49,211.46,23.57028335]
[1731534498193,0.2,211.49,211.46,23.57028335]
[1731534498420,0.1,211.48,211.46,23.57028335]
[1731534499320,0.1,211.5,211.46,23.57028335]
[1731534499521,0.1,211.52,211.48,23.57028335]
[1731534500201,0.1,211.52,211.49,20.0]
[1731534500594,0.1,211.51,211.49,20.0]
[1731534501019,0.1,211.53,211.5,23.57028335]
[1731534501320,0.1,211.53,211.51,20.0]
[1731534502079,0.1,211.53,211.52,23.57028335]
[1731534502611,0.1,211.53,211.49,20.0]
[1731534503012,0.1,211.56,211.53,20.0]
[1731534503229,0.1,211.56,211.54,23.57028335]
[1731534503607,0.1,211.57,211.55,20.0]
[1731534504924,0.1,211.54,211.49,15.8371]
[1731534505229,0.1,211.52,211.48,23.57028335]
[1731534505804,0.1,211.52,211.44,39.613984]
[1731534505805,0.1,211.55,211.5,23.57028335]
[1731534506112,0.1,211.55,211.44,39.613984]
[1731534506113,0.1,211.56,211.52,23.57028335]
[1731534506410,0.1,211.56,211.54,23.57028335]
[1731534506619,0.1,211.57,211.55,20.0]
[1731534507304,0.1,211.61,211.56,23.57028335]
[1731534507517,0.1,211.62,211.59,20.0]
[1731534507813,0.1,211.61,211.59,20.0]
[1731534509711,0.1,211.61,211.58,23.57028335]
[1731534509910,0.1,211.62,211.58,23.57028335]
[1731534511010,0.1,211.61,211.58,23.57028335]
[1731534511211,0.1,211.62,211.58,23.57028335]
[1731534511428,0.5756833,211.63,211.6,23.57028335]
[1731534512119,0.4756833,211.63,211.62,23.57028335]
[1731534512422,0.4756833,211.63,211.62,43.57028335]
[1731534514013,0.4756833,211.63,211.62,73.7322667]
[1731534514206,0.4756833,211.63,211.62,50.16198335]
[1731534514625,0.4756833,211.63,211.62,73.7322667]
[1731534514918,0.4756833,211.63,211.62,50.16198335]
[1731534515218,0.4756833,211.63,211.62,73.7322667]
[1731534515423,0.4756833,211.63,211.62,97.5091507]
[1731534515625,0.1,211.77,211.71,23.57028335]
[1731534516016,0.1,211.76,211.71,23.57028335]
[1731534516225,0.1,211.76,211.72,20.0]
[1731534516531,0.1,211.73,211.71,23.57028335]
[1731534516730,0.1,211.75,211.71,23.57028335]
[1731534516937,0.2,211.77,211.73,23.57028335]
[1731534517126,0.1,211.77,211.73,23.57028335]
[1731534517630,0.2,211.79,211.73,23.57028335]
[1731534517812,0.2,211.79,211.66,16.4728]
[1731534517813,0.2,211.81,211.75,23.57028335]
[1731534518013,0.1,211.8,211.75,23.57028335]
[1731534518936,0.2,211.78,211.73,23.57028335]
[1731534519139,0.2,211.8,211.75,23.57028335]
[1731534519320,0.1,211.77,211.74,20.0]
[1731534519517,0.1,211.77,211.71,23.57028335]
[1731534519831,0.4756833,211.84,211.66,20.28316751]
[1731534519832,0.1,211.71,211.69,23.57028335]
[1731534520216,0.4756833,211.84,211.7,46.31977335]
[1731534520416,0.4756833,211.84,211.83,23.57028335]
[1731534521838,0.2,211.82,211.81,23.57028335]
[1731534522421,0.5756833,211.84,211.81,23.57028335]
[1731534522735,0.5756833,211.84,211.83,23.57028335]
[1731534524340,0.6756833,211.84,211.83,23.57028335]
[1731534525822,0.1,211.8,211.79,23.57028335]
[1731534526127,0.1,211.74,211.64,22.3777]
[1731534526435,0.1,211.74,211.73,23.57028335]
[1731534526818,0.1,211.77,211.73,23.57028335]
[1731534527014,0.1,211.78,211.76,23.57028335]
[1731534527630,0.1,211.77,211.76,23.57028335]
[1731534528436,0.1,211.75,211.65,20.12549]
[1731534528637,0.2,211.78,211.74,23.57028335]
[1731534528831,0.2,211.78,211.65,20.12549]
[1731534528832,0.1,211.78,211.77,23.57028335]
[1731534529349,28.29038335,211.86,211.77,23.57028335]
[1731534529350,0.1,211.93,211.85,20.0]
[1731534529644,0.1,211.99,211.93,20.0]
[1731534529817,0.1,211.99,211.97,47.1405667]
[1731534530020,0.1,212.01,211.98,20.0]
[1731534530220,0.1,212.01,212.0,23.57028335]
[1731534530527,0.5756833,212.04,211.9,20.0]
[1731534530528,0.1,211.94,211.9,20.0]
[1731534530828,0.9377629,211.94,211.93,23.57028335]
[1731534532142,0.8377629,211.94,211.93,23.57028335]
[1731534532654,0.8377629,211.94,211.93,43.57028335]
[1731534533645,0.8377629,211.94,211.93,23.57028335]
[1731534534241,0.8377629,211.94,211.93,43.57028335]
[1731534536336,0.8377629,211.94,211.93,23.57028335]
[1731534536540,0.8377629,211.94,211.93,43.57028335]
[1731534537952,0.8377629,211.94,211.93,67.34716735]
[1731534538745,0.1,212.0,211.94,43.776884]
[1731534538926,0.1,212.0,211.99,23.57028335]
[1731534539949,0.230641,212.0,211.99,23.57028335]
[1731534543039,0.2,211.98,211.97,23.57028335]
[1731534543455,0.130641,212.0,211.97,23.57028335]
[1731534543456,0.230641,212.0,211.97,23.57028335]
[1731534543630,0.230641,212.0,211.99,23.57028335]
[1731534544036,0.230641,212.0,211.86,34.01601456]
[1731534544037,0.1,211.98,211.97,23.57028335]
[1731534544933,0.2,211.98,211.97,23.57028335]
[1731534545242,0.130641,212.0,211.86,34.01601456]
[1731534545243,0.2,211.92,211.91,23.57028335]
[1731534545548,0.1,211.88,211.87,23.57028335]
[1731534545760,0.2,211.86,211.85,23.57028335]
[1731534546144,0.1,211.91,211.85,47.1405667]
[1731534546451,0.2,211.91,211.9,23.57028335]
[1731534546845,0.1,211.87,211.86,23.57028335]
[1731534547053,49.78257407,211.94,211.86,23.57028335]
[1731534547234,56.64898335,211.92,211.84,23.57028335]
[1731534547431,56.64898335,211.92,211.82,23.57028335]
[1731534547432,28.36,211.89,211.82,23.57028335]
[1731534548051,28.36,211.89,211.76,6.2008]
[1731534548052,7.27396848,211.91,211.84,23.57028335]
[1731534548258,217.14898335,211.92,211.84,23.57028335]
[1731534548442,28.46,211.89,211.82,23.57028335]
[1731534548635,0.1,211.87,211.8,23.57028335]
[1731534548829,28.46,211.87,211.8,23.57028335]
[1731534549147,51.93028335,211.86,211.78,23.57028335]
[1731534549349,0.1,211.85,211.78,23.57028335]
[1731534549544,56.65048335,211.86,211.78,23.57028335]
[1731534549731,56.75048335,211.86,211.78,23.57028335]
[1731534549941,52.03028335,211.84,211.76,23.57028335]
[1731534550330,52.03028335,211.84,211.77,23.57028335]
[1731534550637,51.93028335,211.84,211.77,23.57028335]
[1731534550841,195.3079,211.87,211.79,23.57028335]
[1731534553059,166.9479,211.87,211.79,23.57028335]
[1731534553255,11.1678,211.87,211.79,23.57028335]
[1731534553764,6.4479,211.87,211.81,23.57028335]
[1731534554760,16.3632,211.88,211.81,23.57028335]
[1731534554943,16.3632,211.88,211.83,23.57028335]
[1731534555258,23.57028335,211.84,211.77,23.57028335]
[1731534555442,23.57028335,211.84,211.67,19.14450941]
[1731534555443,23.57028335,211.84,211.75,23.57028335]
[1731534555642,23.57028335,211.84,211.77,23.57028335]
[1731534555840,23.67028335,211.86,211.77,23.57028335]
[1731534556362,23.67028335,211.86,211.79,23.57028335]
[1731534556662,28.39048335,211.86,211.79,23.57028335]
[1731534558166,28.39048335,211.86,211.77,23.57028335]
[1731534558753,23.57028335,211.84,211.77,23.57028335]
[1731534559765,28.29078335,211.84,211.77,23.57028335]
[1731534559938,28.39078335,211.84,211.77,23.57028335]
[1731534560143,28.29078335,211.84,211.77,23.57028335]
[1731534560658,4.7205,211.84,211.77,23.57028335]
[1731534560839,28.29078335,211.84,211.76,23.57028335]
[1731534561175,23.57028335,211.83,211.76,23.57028335]
[1731534561839,23.67028335,211.77,211.61,16.593]
[1731534562045,23.57028335,211.71,211.63,23.57028335]
[1731534562357,23.57028335,211.71,211.6,23.57028335]
[1731534562358,23.57028335,211.67,211.6,23.57028335]
[1731534562556,0.1,211.69,211.53,6.4599]
[1731534562772,0.1,211.67,211.53,6.4599]
[1731534563069,0.1,211.63,211.49,16.593]
[1731534563269,0.22549,211.62,211.47,6.4599]
[1731534563454,0.1,211.61,211.47,6.4599]
[1731534563844,0.22549,211.62,211.47,6.4599]
[1731534563845,23.57028335,211.58,211.5,23.57028335]
[1731534564145,23.57028335,211.63,211.55,23.57028335]
[1731534564643,23.57028335,211.62,211.55,23.57028335]
[1731534565157,23.57028335,211.71,211.61,23.57028335]
[1731534565354,23.57028335,211.71,211.63,23.57028335]
[1731534566374,23.57028335,211.73,211.65,23.57028335]
[1731534566550,23.57028335,211.75,211.68,23.57028335]
[1731534566865,23.57028335,211.79,211.71,23.57028335]
[1731534567040,23.57028335,211.73,211.62,20.0]
[1731534567242,23.57028335,211.7,211.61,6.2742]
[1731534567556,0.1,211.73,211.59,20.0]
[1731534567758,23.57028335,211.68,211.6,23.57028335]
[1731534568065,23.57028335,211.67,211.6,23.57028335]
[1731534568247,23.57028335,211.69,211.6,23.57028335]
[1731534568441,23.57028335,211.71,211.62,23.57028335]
[1731534568640,23.57028335,211.72,211.64,23.57028335]
[1731534569368,23.57028335,211.74,211.66,23.57028335]
[1731534569590,23.57028335,211.74,211.68,23.57028335]
[1731534570244,23.57028335,211.74,211.66,23.57028335]
[1731534571160,7.28061479,211.75,211.68,23.57028335]
[1731534571357,23.57028335,211.76,211.68,23.57028335]
[1731534571667,23.57028335,211.8,211.72,23.57028335]
[1731534571861,30.85287376,211.8,211.72,23.57028335]
[1731534572086,23.57028335,211.8,211.72,23.57028335]
[1731534572252,23.57028335,211.8,211.57,23.776884]
[1731534572253,23.57028335,211.73,211.57,23.776884]
[1731534572449,23.57028335,211.67,211.59,23.57028335]
[1731534572752,23.57028335,211.61,211.53,23.57028335]
[1731534572953,23.57028335,211.59,211.51,23.57028335]
[1731534573266,23.57028335,211.59,211.48,22.6114]
[1731534573267,0.2,211.58,211.41,22.6114]
[1731534573479,0.12549,211.58,211.41,22.6114]
[1731534574153,23.57028335,211.52,211.44,23.57028335]
[1731534574369,23.57028335,211.54,211.46,23.57028335]
[1731534574575,23.57028335,211.52,211.44,23.57028335]
[1731534574778,38.34413305,211.53,211.45,38.34413305]
[1731534575673,38.34413305,211.55,211.47,38.34413305]
[1731534575871,38.34413305,211.54,211.45,38.34413305]
[1731534576471,38.34413305,211.54,211.46,38.34413305]
[1731534576700,38.34413305,211.53,211.45,38.34413305]
[1731534577358,38.34413305,211.53,211.44,38.34413305]
[1731534577359,38.34413305,211.52,211.44,38.34413305]
[1731534577684,38.34413305,211.52,211.45,38.34413305]
[1731534578258,38.34413305,211.51,211.43,38.34413305]
[1731534578458,38.34413305,211.47,211.39,38.34413305]
[1731534578659,38.34413305,211.46,211.39,38.34413305]
[1731534579193,38.34413305,211.45,211.38,38.34413305]
[1731534579392,38.34413305,211.45,211.33,6.0374]
[1731534579393,38.34413305,211.43,211.35,38.34413305]
[1731534579683,38.34413305,211.44,211.35,38.34413305]
[1731534579860,38.34413305,211.44,211.37,38.34413305]
[1731534580059,38.34413305,211.45,211.37,38.34413305]
[1731534580260,38.34413305,211.46,211.38,38.34413305]
[1731534580669,38.34413305,211.44,211.37,38.34413305]
[1731534581990,38.34413305,211.44,211.29,0.4021846]
[1731534581991,7.29910322,211.09,210.99,16.84092434]
[1731534582295,0.1,211.06,210.87,15.092]
[1731534582781,242.676884,211.06,210.87,15.092]
[1731534582961,216.56686099,211.06,210.87,15.092]
[1731534583168,0.1,211.0,210.86,6.0346]
[1731534583491,38.34413305,210.87,210.77,15.092]
[1731534583783,38.34413305,210.84,210.77,15.092]
[1731534583991,38.34413305,210.88,210.79,38.34413305]
[1731534584169,38.34413305,210.88,210.77,53.43613305]
[1731534584486,38.34413305,210.92,210.81,38.34413305]
[1731534584690,38.34413305,210.95,210.86,38.34413305]
[1731534584996,38.34413305,210.97,210.86,38.34413305]
[1731534585169,38.34413305,210.97,210.88,38.34413305]
[1731534585971,38.34413305,210.97,210.87,20.0]
[1731534586470,68.34413305,210.99,210.9,38.34413305]
[1731534586983,38.34413305,210.97,210.88,38.34413305]
[1731534587282,38.34413305,210.95,210.86,38.34413305]
[1731534587471,38.34413305,210.95,210.84,38.34413305]
[1731534588182,38.34413305,210.99,210.9,38.34413305]
[1731534588375,38.34413305,211.01,210.92,38.34413305]
[1731534588964,38.34413305,211.03,210.94,38.34413305]
[1731534589390,38.34413305,211.01,210.92,38.34413305]
[1731534589589,38.34413305,211.01,210.93,20.0]
[1731534589964,38.34413305,211.01,210.92,38.34413305]
[1731534590169,38.34413305,210.99,210.91,20.0]
[1731534590592,38.34413305,211.01,210.91,20.0]
[1731534590980,38.34413305,211.01,210.92,38.34413305]
[1731534592068,0.12549,211.0,210.92,38.34413305]
[1731534592291,38.34413305,210.99,210.89,38.34413305]
[1731534592491,38.34413305,210.99,210.91,38.34413305]
[1731534592888,38.34413305,210.99,210.89,38.34413305]
[1731534593580,38.34413305,210.97,210.89,38.34413305]
[1731534593764,38.34413305,210.97,210.87,38.34413305]
[1731534594084,38.34413305,210.95,210.88,20.0]
[1731534594771,38.34413305,210.97,210.88,20.0]
[1731534595487,23.776884,210.98,210.91,38.34413305]
[1731534595794,38.34413305,210.99,210.91,38.34413305]
[1731534595978,62.01933305,211.2,210.95,38.34413305]
[1731534595979,38.34413305,211.03,210.95,38.34413305]
[1731534596182,38.34413305,211.05,210.97,38.34413305]
[1731534596989,38.34413305,211.07,210.97,38.34413305]
[1731534597191,38.34413305,211.07,210.99,38.34413305]
[1731534597896,38.34413305,211.08,211.01,38.34413305]
[1731534598095,38.34413305,211.1,211.01,38.34413305]
[1731534598778,160.5,211.15,210.95,6.6258]
[1731534598779,38.34413305,211.12,211.03,38.34413305]
[1731534599196,38.34413305,211.08,210.99,38.34413305]
[1731534599394,38.34413305,211.06,210.99,38.34413305]
[1731534599585,38.34413305,211.08,210.99,38.34413305]
[1731534600094,38.34413305,211.1,211.01,38.34413305]
[1731534600292,38.34413305,211.12,211.03,38.34413305]
[1731534600501,38.34413305,211.15,211.06,38.34413305]
[1731534600679,38.34413305,211.13,211.05,20.0]
[1731534601499,38.34413305,211.15,211.06,38.34413305]
[1731534601978,18.946991,211.16,211.05,20.0]
[1731534601979,18.946991,211.16,211.1,38.34413305]
[1731534602385,57.29112405,211.16,211.09,20.0]
[1731534602589,38.34413305,211.16,211.09,20.0]
[1731534603103,38.34413305,211.16,211.07,20.0]
[1731534603104,28.3,211.15,211.07,20.0]
[1731534603283,66.64413305,211.18,211.09,20.0]
[1731534603490,18.944137,211.19,211.09,20.0]
[1731534603491,18.944137,211.19,211.12,38.34413305]
[1731534603689,18.944137,211.19,211.16,38.34413305]
[1731534603876,38.34413305,211.28,211.18,38.34413305]
[1731534604075,38.34413305,211.28,210.8,70.0]
[1731534604076,38.34413305,211.21,211.03,6.3829]
[1731534604280,38.34413305,211.19,211.12,38.34413305]
[1731534604799,66.64413305,211.21,211.14,38.34413305]
[1731534605008,28.3,211.14,211.03,6.2829]
[1731534605306,38.34413305,211.04,210.96,38.34413305]
[1731534605507,38.34413305,211.02,210.94,44.67113305]
[1731534606000,66.64413305,211.02,210.94,6.327]
[1731534606379,28.3,210.99,210.94,6.327]
[1731534606580,28.3,210.99,210.92,38.34413305]
[1731534607139,38.34413305,210.98,210.9,38.34413305]
[1731534607303,28.3,210.99,210.9,38.34413305]
[1731534607976,28.3,210.99,210.87,15.6163]
[1731534607977,38.34413305,211.03,210.94,38.34413305]
[1731534608175,38.34413305,211.03,210.85,6.636]
[1731534608176,38.34413305,210.96,210.86,38.34413305]
[1731534608385,38.34413305,210.96,210.85,6.636]
[1731534608386,38.34413305,210.98,210.88,38.34413305]
[1731534608682,38.34413305,210.96,210.88,38.34413305]
[1731534608890,23.776884,210.97,210.9,38.34413305]
[1731534609080,38.46962305,210.96,210.88,38.34413305]
[1731534609285,38.34413305,210.94,210.86,38.34413305]
[1731534609705,38.34413305,210.98,210.9,38.34413305]
[1731534610085,198.84413305,211.0,210.9,38.34413305]
[1731534610289,38.34413305,211.0,210.92,38.34413305]
[1731534610694,38.34413305,211.02,210.94,38.34413305]
[1731534611185,38.34413305,211.04,210.96,38.34413305]
[1731534611406,38.34413305,211.06,210.98,38.34413305]
[1731534611585,38.34413305,211.06,210.96,38.34413305]
[1731534611897,38.34413305,211.04,210.96,38.34413305]
[1731534613191,38.34413305,211.02,210.94,38.34413305]
[1731534613393,38.34413305,211.0,210.92,38.34413305]
[1731534614601,38.34413305,211.02,210.92,38.34413305]
[1731534614908,23.776884,211.01,210.92,38.34413305]
[1731534615209,38.34413305,211.0,210.92,38.34413305]
[1731534615707,7.23412088,211.02,210.97,38.34413305]
[1731534615893,198.84413305,211.06,210.97,38.34413305]
[1731534616292,206.07249454,211.06,210.97,38.34413305]
[1731534616494,167.72836149,211.06,210.99,38.34413305]
[1731534616699,38.34413305,211.08,210.99,38.34413305]
[1731534616897,160.5,211.13,210.9,0.12549]
[1731534616898,38.34413305,211.12,211.03,38.34413305]
[1731534617401,45.56820759,211.12,211.03,38.34413305]
[1731534617714,38.34413305,211.04,210.96,38.34413305]
[1731534618592,38.34413305,211.04,210.88,3.10983848]
[1731534618593,38.34413305,211.0,210.92,38.34413305]
[1731534618894,38.34413305,211.02,210.92,38.34413305]
[1731534619288,38.34413305,211.02,210.94,38.34413305]
[1731534619695,38.34413305,211.0,210.92,38.34413305]
[1731534620301,23.776884,211.01,210.94,38.34413305]
[1731534621709,38.34413305,211.0,210.92,38.34413305]
[1731534622403,38.34413305,210.98,210.9,38.34413305]
[1731534622611,23.776884,211.01,210.85,24.94335114]
[1731534622612,38.34413305,210.96,210.87,38.34413305]
[1731534622816,18.962425,211.0,210.87,38.34413305]
[1731534622992,31.40471899,211.1,210.99,38.34413305]
[1731534623189,50.35800999,211.1,211.04,38.34413305]
[1731534623421,47.253291,211.1,211.04,38.34413305]
[1731534623715,7.22407454,211.12,211.06,38.34413305]
[1731534623896,18.950854,211.12,211.08,38.34413305]
[1731534624097,66.64413305,211.16,211.08,38.34413305]
[1731534624302,7.22565777,211.15,211.12,38.34413305]
[1731534624690,38.34413305,211.2,211.12,38.34413305]
[1731534624890,18.943601,211.21,211.14,38.34413305]
[1731534625107,0.12549,211.19,211.1,38.34413305]
[1731534625412,0.12549,211.15,211.01,22.3883]
[1731534625592,38.34413305,211.12,211.04,38.34413305]
[1731534625911,7.22172668,211.2,211.11,38.34413305]
[1731534626106,7.22172668,211.2,211.16,38.34413305]
[1731534626917,11.95662668,211.2,211.14,38.34413305]
[1731534627120,7.22172668,211.2,211.16,38.34413305]
[1731534627296,28.3,211.22,211.16,38.34413305]
[1731534627502,7.21515698,211.21,211.16,38.34413305]
[1731534627699,28.3,211.22,211.16,38.34413305]
[1731534628010,28.3,211.24,211.18,38.34413305]
[1731534628211,28.3,211.19,211.02,23.876884]
[1731534628422,28.3,211.19,211.12,38.34413305]
[1731534628711,43.07763305,211.26,211.18,38.34413305]
[1731534628917,28.3,211.25,211.18,38.34413305]
[1731534629091,28.3,211.23,211.16,38.34413305]
[1731534630220,23.776884,211.22,211.16,38.34413305]
[1731534631093,23.776884,211.22,211.18,38.34413305]
[1731534631619,7.2160444,211.25,211.2,38.34413305]
[1731534631804,0.80939198,211.28,211.22,38.34413305]
[1731534631993,230.6,211.34,211.09,38.44413305]
[1731534631994,38.34413305,211.32,211.24,38.34413305]
[1731534632195,38.34413305,211.34,211.26,38.34413305]
[1731534632416,0.12549,211.33,211.26,38.34413305]
[1731534632722,28.42549,211.33,211.26,38.34413305]
[1731534632912,35.6415415,211.33,211.26,38.34413305]
[1731534633513,40.2481515,211.33,211.26,38.34413305]
[1731534634323,66.64413305,211.28,211.18,38.34413305]
[1731534634510,66.64413305,211.26,211.18,38.34413305]
[1731534634708,38.34413305,211.22,211.12,44.68713305]
[1731534635012,38.34413305,211.22,211.14,38.34413305]
[1731534635013,62.12101705,211.22,211.14,38.34413305]
[1731534635217,38.34413305,211.18,211.12,6.343]
[1731534635514,38.34413305,211.18,211.1,38.34413305]
[1731534635515,43.07953305,211.18,211.1,38.34413305]
[1731534635920,38.34413305,211.16,211.08,38.34413305]
[1731534636418,23.776884,211.15,211.08,38.34413305]
[1731534636593,71.37953305,211.18,211.08,38.34413305]
[1731534636798,23.776884,211.17,211.12,38.34413305]
[1731534636996,23.776884,211.17,211.1,38.34413305]
[1731534637715,28.512384,211.17,211.1,38.34413305]
[1731534638394,23.776884,211.17,211.1,38.34413305]
[1731534638600,23.776884,211.18,211.1,38.34413305]
[1731534638910,38.34413305,211.16,211.08,38.34413305]
[1731534639317,38.34413305,211.14,211.06,38.34413305]
[1731534639514,90.42101705,211.18,211.1,38.34413305]
[1731534639713,23.776884,211.16,211.08,38.34413305]
[1731534639921,23.776884,211.16,211.1,38.34413305]
[1731534640099,23.776884,211.16,211.08,38.34413305]
[1731534640305,23.776884,211.13,211.06,38.34413305]
[1731534640523,4.7355,211.17,211.1,38.34413305]
[1731534640822,188.8,211.19,211.12,38.34413305]
[1731534640996,23.776884,211.21,211.16,38.34413305]
[1731534641197,38.34413305,211.29,211.2,38.34413305]
[1731534641527,4.7328,211.29,211.22,38.34413305]
[1731534641828,4.7323,211.31,211.24,38.34413305]
[1731534643023,11.9480515,211.33,211.26,38.34413305]
[1731534643523,28.3,211.35,211.21,6.4345]
[1731534643524,33.0316,211.35,211.28,38.34413305]
[1731534644822,38.34413305,211.38,211.3,38.34413305]
[1731534645324,18.926417,211.41,211.34,38.34413305]
[1731534645532,43.07403305,211.42,211.34,38.34413305]
[1731534645825,50.29015329,211.42,211.34,38.34413305]
[1731534646407,23.776884,211.41,211.34,38.34413305]
[1731534647501,57.26774605,211.44,211.36,38.34413305]
[1731534647703,71.37313305,211.46,211.38,38.34413305]
[1731534647928,38.34413305,211.42,211.34,38.34413305]
[1731534648418,4.7301,211.41,211.34,38.34413305]
[1731534648629,38.34413305,211.4,211.32,38.34413305]
[1731534648816,23.776884,211.39,211.32,38.34413305]
[1731534649130,23.776884,211.37,211.3,38.34413305]
[1731534649326,23.776884,211.35,211.28,38.34413305]
[1731534649827,38.34413305,211.42,211.34,38.34413305]
[1731534650011,45.55820062,211.44,211.36,38.34413305]
[1731534650212,0.12549,211.43,211.36,38.34413305]
[1731534650414,38.34413305,211.4,211.32,38.34413305]
[1731534650618,38.34413305,211.38,211.3,38.34413305]
[1731534651018,23.776884,211.37,211.32,38.34413305]
[1731534651406,23.776884,211.41,211.34,38.34413305]
[1731534651610,38.34413305,211.38,211.3,38.34413305]
[1731534652021,38.34413305,211.36,211.28,38.34413305]
[1731534652335,38.34413305,211.33,211.26,38.34413305]
[1731534653820,23.776884,211.36,211.28,38.34413305]
[1731534654013,38.34413305,211.37,211.28,38.34413305]
[1731534654213,22.02654549,211.42,211.28,38.34413305]
[1731534654214,38.34413305,211.36,211.28,38.34413305]
[1731534655423,38.34413305,211.32,211.24,38.34413305]
[1731534655916,38.34413305,211.3,211.22,38.34413305]
[1731534656120,38.34413305,211.26,211.21,6.4345]
[1731534656320,38.34413305,211.24,211.16,53.47923305]
[1731534656624,38.34413305,211.22,211.14,6.2527]
[1731534656823,38.34413305,211.22,211.08,15.0934]
[1731534656824,38.34413305,211.18,211.1,38.34413305]
[1731534657125,38.34413305,211.14,211.08,15.0934]
[1731534657434,38.34413305,211.14,211.06,44.59683305]
[1731534657826,23.776884,211.13,211.06,44.59683305]
[1731534658035,38.34413305,211.12,211.06,6.2527]
[1731534658537,45.74764257,211.12,211.06,6.2527]
[1731534658710,7.40350952,211.12,211.06,44.59683305]
[1731534659212,23.776884,211.13,211.06,44.59683305]
[1731534659527,28.512884,211.15,211.08,38.34413305]
[1731534659735,28.512884,211.15,211.06,44.59683305]
[1731534659919,7.40359597,211.14,211.06,44.59683305]
[1731534660119,38.34413305,211.14,211.06,44.59683305]
[1731534660436,38.34413305,211.14,211.06,6.2527]
[1731534660437,45.74830125,211.14,211.06,6.2527]
[1731534660642,160.5,211.2,211.06,6.2527]
[1731534660812,38.34413305,211.28,211.18,38.34413305]
[1731534661016,38.34413305,211.28,211.2,38.34413305]
[1731534661212,38.34413305,211.26,211.09,38.34413305]
[1731534661430,38.34413305,211.18,211.1,38.34413305]
[1731534661632,38.34413305,211.18,211.07,0.12549]
[1731534661633,38.34413305,211.18,211.09,38.34413305]
[1731534662150,23.776884,211.17,211.09,38.34413305]
[1731534662442,38.34413305,211.14,211.07,38.46962305]
[1731534662741,38.34413305,211.12,211.06,6.2527]
[1731534662947,38.34413305,211.12,211.01,15.0934]
[1731534662948,38.34413305,211.1,211.02,38.34413305]
[1731534663120,38.34413305,211.14,211.06,38.34413305]
[1731534663327,23.776884,211.15,211.08,38.34413305]
[1731534663522,23.776884,211.15,211.01,15.0934]
[1731534663523,23.776884,211.17,211.1,38.34413305]
[1731534663732,23.776884,211.17,211.08,38.34413305]
[1731534663733,38.34413305,211.16,211.08,38.34413305]
[1731534665226,38.34413305,211.14,211.06,38.34413305]
[1731534665631,38.34413305,211.16,211.08,38.34413305]
[1731534665839,23.776884,211.15,211.1,38.34413305]
[1731534666223,23.776884,211.17,211.1,38.34413305]
[1731534666944,4.7345,211.22,211.14,38.34413305]
[1731534667132,43.07773305,211.26,211.18,38.34413305]
[1731534667325,12.14091502,211.27,211.2,38.34413305]
[1731534667839,38.34413305,211.28,211.2,38.34413305]
[1731534668039,43.07723305,211.28,211.2,38.34413305]
[1731534668631,23.776884,211.27,211.2,38.34413305]
[1731534669031,23.776884,211.27,211.16,6.6497]
[1731534669032,38.34413305,211.24,211.16,44.99383305]
[1731534669234,38.34413305,211.22,211.16,6.6497]
[1731534669438,45.75228343,211.28,211.2,38.34413305]
[1731534670240,38.34413305,211.24,211.16,44.99383305]